bitfinex/quotes_BTCUSD_20251104
["timestamp","ask_amount","ask_price","bid_price","bid_amount"]
[1762244529091,0.34,104290.0,104280.0,0.11007222]
[1762244529301,0.53177294,104290.0,104280.0,0.17226222]
[1762244529509,0.341,104290.0,104280.0,0.17226222]
[1762244529742,0.53277294,104290.0,104280.0,0.17226222]
[1762244530209,0.53277294,104290.0,104280.0,0.08131222]
[1762244530438,0.58221294,104290.0,104270.0,0.63931254]
[1762244530681,0.19179133,104280.0,104270.0,0.63931254]
[1762244530889,0.19179133,104280.0,104270.0,0.50112254]
[1762244531108,0.53179133,104280.0,104270.0,0.50112254]
[1762244531332,0.56797361,104280.0,104270.0,0.54836254]
[1762244532442,0.59751361,104280.0,104270.0,0.50612254]
[1762244532658,0.34,104280.0,104270.0,0.70650254]
[1762244533090,0.10610655,104310.0,104270.0,0.70650254]
[1762244533308,0.53175659,104300.0,104280.0,0.13115913]
[1762244533525,0.34,104300.0,104280.0,0.13110222]
[1762244533733,0.34,104300.0,104290.0,0.04724]
[1762244533948,0.29833022,104310.0,104290.0,0.19991]
[1762244533949,0.1924634,104310.0,104290.0,0.19991]
[1762244534211,0.00072577,104310.0,104300.0,0.02757]
[1762244534430,0.34072577,104310.0,104300.0,0.02757]
[1762244534660,0.00072577,104310.0,104300.0,0.11852]
[1762244535128,0.19246279,104310.0,104290.0,0.16902653]
[1762244535378,0.19246218,104310.0,104290.0,0.16963703]
[1762244535813,0.24857218,104310.0,104290.0,0.15146]
[1762244536029,0.19175455,104300.0,104290.0,0.15146]
[1762244536467,0.53175455,104300.0,104290.0,0.049158]
[1762244536695,0.53175455,104300.0,104290.0,0.001918]
[1762244537337,0.34,104300.0,104290.0,0.001918]
[1762244537552,0.53246379,104310.0,104290.0,0.163268]
[1762244537823,0.53246379,104310.0,104290.0,0.167268]
[1762244538495,0.34072577,104310.0,104290.0,0.106138]
[1762244538702,0.00072577,104310.0,104300.0,0.13173545]
[1762244539155,0.00072577,104310.0,104300.0,0.01334]
[1762244539576,0.19302194,104310.0,104290.0,0.005918]
[1762244539793,0.24857194,104310.0,104290.0,0.005918]
[1762244540015,0.19175455,104300.0,104290.0,0.001918]
[1762244540228,0.19175455,104300.0,104290.0,0.004918]
[1762244540888,0.19175455,104300.0,104290.0,0.066048]
[1762244541103,0.19175455,104300.0,104290.0,0.063048]
[1762244541560,0.32803348,104300.0,104290.0,0.006918]
[1762244541795,0.28405683,104300.0,104290.0,0.006918]
[1762244542012,0.24787455,104300.0,104290.0,0.006918]
[1762244542226,0.28405683,104300.0,104290.0,0.006918]
[1762244542445,0.24747194,104310.0,104290.0,0.053658]
[1762244542680,0.24747194,104310.0,104290.0,0.114788]
[1762244542918,0.19246194,104310.0,104290.0,0.210008]
[1762244543139,0.19246194,104310.0,104290.0,0.212008]
[1762244543362,0.19246202,104310.0,104290.0,0.212008]
[1762244543583,0.19246202,104310.0,104290.0,0.209008]
[1762244543811,0.00072577,104310.0,104300.0,0.01917545]
[1762244544064,0.00072577,104310.0,104300.0,0.11255]
[1762244544333,0.34172577,104310.0,104300.0,0.11255]
[1762244545430,0.34109057,104310.0,104300.0,0.11255]
[1762244545881,0.19175455,104300.0,104290.0,0.049658]
[1762244546310,0.19175455,104300.0,104290.0,0.209008]
[1762244546521,0.58737674,104310.0,104290.0,0.209008]
[1762244546738,0.53182674,104310.0,104290.0,0.209008]
[1762244546954,0.56800902,104310.0,104300.0,0.001]
[1762244547377,0.56800902,104310.0,104290.0,0.147878]
[1762244547588,0.56800902,104310.0,104290.0,0.001918]
[1762244547589,0.62404683,104300.0,104290.0,0.001918]
[1762244547810,0.62404683,104300.0,104290.0,0.004918]
[1762244548480,0.56793683,104300.0,104290.0,0.004918]
[1762244548695,0.62404683,104300.0,104290.0,0.001918]
[1762244549615,0.37674228,104300.0,104290.0,0.001918]
[1762244549818,0.19182678,104310.0,104290.0,0.162758]
[1762244550032,0.001,104300.0,104290.0,0.162758]
[1762244550251,0.001,104300.0,104290.0,0.066548]
[1762244550524,0.001,104300.0,104290.0,0.162758]
[1762244550973,9.057e-05,104310.0,104290.0,0.35453026]
[1762244551194,9.057e-05,104310.0,104300.0,0.11003]
[1762244551411,9.057e-05,104310.0,104300.0,0.13215222]
[1762244551853,9.057e-05,104310.0,104300.0,0.12915222]
[1762244552065,9.057e-05,104310.0,104300.0,0.14177193]
[1762244552286,0.00109057,104310.0,104300.0,0.12915222]
[1762244552507,0.00109057,104310.0,104300.0,0.01912222]
[1762244552508,0.03783285,104310.0,104300.0,0.01912222]
[1762244552732,0.28511902,104310.0,104300.0,0.01912222]
[1762244552991,0.53175455,104300.0,104290.0,0.001918]
[1762244553645,0.34,104300.0,104290.0,0.001918]
[1762244553862,0.34,104300.0,104290.0,0.162758]
[1762244554283,9.057e-05,104310.0,104290.0,0.162758]
[1762244554496,0.53182674,104310.0,104300.0,0.01383]
[1762244554712,0.53182674,104310.0,104300.0,0.001]
[1762244555148,0.53182674,104310.0,104290.0,0.098128]
[1762244555579,0.19175455,104300.0,104290.0,0.098128]
[1762244555793,0.53182674,104310.0,104290.0,0.101128]
[1762244556436,0.53182674,104310.0,104300.0,0.06463]
[1762244556667,9.057e-05,104310.0,104300.0,0.10292767]
[1762244556893,9.057e-05,104310.0,104300.0,0.17996222]
[1762244557145,9.057e-05,104310.0,104300.0,0.19913767]
[1762244557784,9.057e-05,104310.0,104300.0,0.17996222]
[1762244558042,9.057e-05,104310.0,104300.0,0.38925304]
[1762244558254,9.057e-05,104310.0,104300.0,0.17996222]
[1762244558471,9.057e-05,104310.0,104300.0,0.3881948]
[1762244558681,9.057e-05,104310.0,104300.0,0.37571677]
[1762244558899,9.057e-05,104310.0,104300.0,0.18396222]
[1762244559115,9.057e-05,104310.0,104300.0,0.20313767]
[1762244559363,9.057e-05,104310.0,104300.0,0.39089222]
[1762244559570,0.0002,104350.0,104330.0,0.01999998]
[1762244559833,0.00034583,104350.0,104340.0,0.06064]
[1762244560059,0.00034583,104350.0,104340.0,0.15685]
[1762244560060,0.0169832,104350.0,104340.0,0.15685]
[1762244560274,0.00034583,104350.0,104340.0,0.15685]
[1762244560509,0.00034583,104350.0,104340.0,0.34853104]
[1762244560764,0.00034583,104350.0,104340.0,0.35853103]
[1762244560974,3.847e-05,104350.0,104340.0,0.35853103]
[1762244561222,3.847e-05,104350.0,104340.0,0.4047133]
[1762244561638,3.847e-05,104350.0,104340.0,0.6047133]
[1762244561858,3.847e-05,104350.0,104340.0,0.40703227]
[1762244562073,3.847e-05,104350.0,104340.0,0.6087133]
[1762244562303,3.847e-05,104350.0,104340.0,0.6047133]
[1762244562526,3.847e-05,104350.0,104340.0,0.95471329]
[1762244562749,0.0004,104360.0,104350.0,0.55166265]
[1762244562966,0.0004,104360.0,104350.0,0.93675715]
[1762244563448,0.0004,104360.0,104350.0,0.72675716]
[1762244563659,0.0004,104360.0,104350.0,0.93675715]
[1762244564071,0.0004,104360.0,104350.0,0.94675715]
[1762244564529,0.0004,104360.0,104350.0,0.95075715]
[1762244565425,0.0004,104360.0,104350.0,1.41544496]
[1762244565857,0.0015981,104360.0,104350.0,1.41544496]
[1762244566547,0.01670602,104400.0,104380.0,0.03589999]
[1762244566548,0.34,104400.0,104380.0,0.03589999]
[1762244566756,0.34014569,104400.0,104390.0,0.12812892]
[1762244566977,0.34014569,104400.0,104390.0,0.20594]
[1762244567410,0.0002,104430.0,104400.0,0.20112616]
[1762244567632,0.00068554,104430.0,104420.0,0.11732226]
[1762244567854,0.00068554,104430.0,104420.0,0.13644448]
[1762244568072,0.00068554,104430.0,104420.0,0.18723221]
[1762244568557,0.00068554,104430.0,104420.0,0.1972322]
[1762244568774,0.00068554,104430.0,104420.0,0.38876638]
[1762244569202,0.00068554,104430.0,104420.0,0.1972322]
[1762244569411,0.00068554,104430.0,104420.0,0.42494866]
[1762244570338,0.00068554,104430.0,104420.0,0.43394866]
[1762244570762,0.00068554,104430.0,104420.0,0.43194866]
[1762244571021,0.00068554,104430.0,104420.0,0.42494866]
[1762244571219,0.00068554,104430.0,104420.0,0.43394866]
[1762244571669,0.00068554,104430.0,104420.0,0.40076638]
[1762244572418,0.00068554,104430.0,104420.0,0.78694865]
[1762244572628,0.00068554,104430.0,104420.0,0.77694866]
[1762244572841,0.00236136,104430.0,104420.0,0.97694866]
[1762244573482,0.00236136,104430.0,104420.0,0.96494866]
[1762244574144,0.00236136,104430.0,104420.0,0.58876638]
[1762244574562,0.00236136,104430.0,104420.0,0.60276638]
[1762244574782,0.00236136,104430.0,104420.0,0.40276638]
[1762244574990,0.00236136,104430.0,104420.0,0.39976638]
[1762244575207,0.00236136,104430.0,104420.0,0.38876638]
[1762244575836,0.00236136,104430.0,104420.0,0.18723221]
[1762244576083,0.00236136,104430.0,104420.0,0.37876639]
[1762244576289,0.0004,104440.0,104430.0,0.7876981]
[1762244576502,0.00054558,104440.0,104430.0,0.15784]
[1762244576709,0.00054558,104440.0,104430.0,0.36850742]
[1762244576915,0.00054558,104440.0,104430.0,0.34935584]
[1762244577981,0.00054558,104440.0,104430.0,0.35935583]
[1762244578194,0.00054558,104440.0,104430.0,0.36435583]
[1762244578401,0.00054558,104440.0,104430.0,0.37435582]
[1762244579486,0.00054558,104440.0,104430.0,0.36935582]
[1762244579968,0.00054558,104440.0,104430.0,0.37635582]
[1762244580181,0.00054558,104440.0,104430.0,0.6125381]
[1762244580398,1e-08,104440.0,104430.0,1.39890591]
[1762244580613,1e-08,104440.0,104430.0,1.4089059]
[1762244580828,1e-08,104440.0,104430.0,1.4179059]
[1762244581303,1e-08,104440.0,104430.0,1.4069059]
[1762244581527,1e-08,104440.0,104430.0,1.4209059]
[1762244582178,1e-08,104450.0,104440.0,0.56149748]
[1762244582412,1e-08,104450.0,104440.0,0.75741198]
[1762244582631,10.0,104500.0,104490.0,0.19140587]
[1762244582855,10.00014558,104500.0,104490.0,0.26029809]
[1762244583080,10.00014558,104500.0,104490.0,0.41536808]
[1762244583304,10.00014558,104500.0,104490.0,0.66155035]
[1762244583531,10.00014558,104500.0,104490.0,1.45291816]
[1762244583759,9.97157705,104500.0,104490.0,1.44291817]
[1762244583969,9.97157705,104500.0,104490.0,1.45291816]
[1762244584190,9.97157705,104500.0,104490.0,0.65455036]
[1762244584403,9.97157705,104500.0,104490.0,0.66455035]
[1762244584620,9.97157705,104500.0,104490.0,0.21396222]
[1762244585076,10.31157705,104500.0,104490.0,0.21596222]
[1762244585286,10.31157705,104500.0,104490.0,0.19684]
[1762244585923,10.5029646,104500.0,104490.0,0.19684]
[1762244586148,10.31157705,104500.0,104490.0,0.20584]
[1762244586371,10.5029646,104500.0,104490.0,0.10687]
[1762244586584,0.34,104480.0,104470.0,0.16419222]
[1762244587014,0.34,104480.0,104470.0,0.24420647]
[1762244587233,0.34,104490.0,104470.0,0.42607685]
[1762244587471,0.34,104490.0,104480.0,0.3075366]
[1762244587712,0.34,104490.0,104480.0,0.15784]
[1762244588136,0.34119588,104490.0,104480.0,0.15784]
[1762244588620,0.34056107,104490.0,104480.0,0.15784]
[1762244588844,0.34056107,104490.0,104470.0,0.07222222]
[1762244589145,0.53077109,104490.0,104470.0,0.16919222]
[1762244589422,0.19142419,104480.0,104470.0,0.07222222]
[1762244589710,0.58075109,104490.0,104470.0,0.06722222]
[1762244589972,0.19145035,104470.0,104450.0,0.0481]
[1762244590233,0.19145035,104470.0,104450.0,0.14507]
[1762244590471,0.19146084,104460.0,104450.0,0.14507]
[1762244590716,0.19148129,104450.0,104440.0,0.0481]
[1762244590971,0.61606357,104450.0,104440.0,0.0481]
[1762244591217,0.53150149,104440.0,104420.0,0.0481]
[1762244591462,0.53150149,104440.0,104420.0,0.14507]
[1762244591713,0.34,104430.0,104420.0,0.04824558]
[1762244591980,0.53151584,104430.0,104420.0,0.04824558]
[1762244592250,0.53151584,104430.0,104420.0,0.14521558]
[1762244592251,0.34,104430.0,104420.0,0.14521558]
[1762244592517,0.53151584,104430.0,104420.0,0.04824558]
[1762244592769,0.34,104430.0,104420.0,0.04824558]
[1762244593029,0.33809,104430.0,104420.0,0.04824558]
[1762244593303,0.52960584,104430.0,104420.0,0.04824558]
[1762244593562,0.61670812,104430.0,104420.0,0.00014558]
[1762244593881,0.37427228,104430.0,104420.0,0.00314558]
[1762244594103,0.37427228,104430.0,104420.0,0.16098558]
[1762244594104,0.33809,104430.0,104420.0,0.16098558]
[1762244594378,0.33809,104430.0,104420.0,0.15798558]
[1762244594647,0.34109,104430.0,104420.0,0.15798558]
[1762244594904,0.003,104430.0,104420.0,0.15798558]
[1762244595699,0.003,104430.0,104420.0,0.17713899]
[1762244595954,0.53148054,104450.0,104420.0,0.15798558]
[1762244595955,0.37618228,104440.0,104420.0,0.15798558]
[1762244596531,0.34,104440.0,104420.0,0.15798558]
[1762244596769,0.34,104440.0,104420.0,0.17713899]
[1762244597049,0.34,104440.0,104420.0,0.15798558]
[1762244597325,0.54105803,104450.0,104420.0,0.15798558]
[1762244597590,0.19149767,104440.0,104420.0,0.06101558]
[1762244597869,0.19249767,104440.0,104420.0,0.06101558]
[1762244598098,0.19249767,104440.0,104420.0,0.15446558]
[1762244598337,0.001,104440.0,104420.0,0.15446558]
[1762244599028,0.19249761,104440.0,104420.0,0.15446558]
[1762244599268,0.19249909,104440.0,104420.0,0.15446558]
[1762244599504,0.53151584,104430.0,104420.0,0.00014558]
[1762244599764,0.34,104430.0,104420.0,0.00014558]
[1762244600426,0.53151584,104430.0,104420.0,0.00014558]
[1762244600649,0.34,104430.0,104420.0,0.15950558]
[1762244600860,0.34,104430.0,104420.0,0.1786278]
[1762244601072,0.52912728,104430.0,104420.0,0.1786278]
[1762244601287,0.52912728,104430.0,104420.0,0.0192678]
[1762244601505,0.33761144,104430.0,104420.0,0.0192678]
[1762244601762,0.33761144,104430.0,104420.0,0.0851778]
[1762244601990,0.33761144,104430.0,104420.0,0.1786278]
[1762244602727,0.33761144,104430.0,104420.0,0.0851778]
[1762244602929,0.33761144,104430.0,104420.0,0.1786278]
[1762244603166,0.33761144,104430.0,104420.0,0.0192678]
[1762244604032,0.52912728,104430.0,104420.0,0.0851778]
[1762244604289,0.33761144,104430.0,104420.0,0.1786278]
[1762244605220,0.52912728,104430.0,104420.0,0.0851778]
[1762244605440,0.33761144,104430.0,104420.0,0.0192678]
[1762244605664,0.52912728,104430.0,104420.0,0.0192678]
[1762244605885,0.53562728,104430.0,104420.0,0.0192678]
[1762244606097,0.74947512,104430.0,104420.0,0.0192678]
[1762244606307,0.38029372,104430.0,104420.0,0.0192678]
[1762244606513,0.37379372,104430.0,104420.0,0.0192678]
[1762244606727,0.56530956,104430.0,104420.0,0.0192678]
[1762244607411,0.37379372,104430.0,104420.0,0.0192678]
[1762244608280,0.52912728,104430.0,104420.0,0.19778121]
[1762244608492,0.33761144,104430.0,104420.0,0.19778121]
[1762244609127,0.33761144,104430.0,104420.0,0.1786278]
[1762244611567,0.52912728,104430.0,104420.0,0.0192678]
[1762244611786,0.66763956,104430.0,104420.0,0.0192678]
[1762244612010,0.62228956,104430.0,104420.0,0.0192678]
[1762244612217,0.43077372,104430.0,104420.0,0.0192678]
[1762244612423,0.42365372,104430.0,104420.0,0.0192678]
[1762244612842,0.61516956,104430.0,104420.0,0.0192678]
[1762244613058,0.42365372,104430.0,104420.0,0.0192678]
[1762244614674,0.33761144,104430.0,104420.0,0.19765121]
[1762244614890,0.33761144,104430.0,104420.0,0.1784978]
[1762244616219,0.52912728,104430.0,104420.0,0.0827778]
[1762244616440,0.66759956,104430.0,104420.0,0.0192678]
[1762244616874,0.56530956,104430.0,104420.0,0.0192678]
[1762244617100,0.56530956,104430.0,104420.0,0.09721723]
[1762244617101,0.37379372,104430.0,104420.0,0.09721723]
[1762244617323,0.33761144,104430.0,104420.0,0.19293723]
[1762244617539,0.33761144,104430.0,104420.0,0.1784978]
[1762244619052,0.52912728,104430.0,104420.0,0.1784978]
[1762244619267,0.38747144,104430.0,104420.0,0.0192678]
[1762244619519,0.33761144,104430.0,104420.0,0.1784978]
[1762244623652,0.52912728,104430.0,104420.0,0.0827778]
[1762244623861,0.33761144,104430.0,104420.0,0.1784978]
[1762244624939,0.52912728,104430.0,104420.0,0.1784978]
[1762244625153,0.31579515,104430.0,104420.0,0.1784978]
[1762244625362,0.50731099,104430.0,104420.0,0.1784978]
[1762244625578,0.31579515,104430.0,104420.0,0.1784978]
[1762244626264,0.50731099,104430.0,104420.0,0.1784978]
[1762244626474,0.64628327,104430.0,104420.0,0.0192678]
[1762244626687,0.64591327,104430.0,104420.0,0.0192678]
[1762244626899,0.5653196,104430.0,104420.0,0.0192678]
[1762244627603,0.5653196,104430.0,104420.0,0.0855978]
[1762244627825,0.5279096,104430.0,104420.0,0.1758878]
[1762244628471,0.33739376,104430.0,104420.0,0.19504121]
[1762244628693,0.30121148,104430.0,104420.0,0.19504121]
[1762244628906,0.30121148,104430.0,104420.0,0.1758878]
[1762244629759,0.30121148,104430.0,104420.0,0.15676558]
[1762244630054,0.30021148,104430.0,104420.0,0.15676558]
[1762244630267,0.30221148,104430.0,104420.0,0.15676558]
[1762244630907,0.30021148,104430.0,104420.0,0.15676558]
[1762244631996,0.26316247,104450.0,104420.0,0.17591899]
[1762244631997,0.00023928,104450.0,104420.0,0.17591899]
[1762244632240,0.00023928,104450.0,104440.0,0.0726]
[1762244632460,0.00023928,104450.0,104440.0,0.11087197]
[1762244632669,0.00023928,104450.0,104440.0,0.20116197]
[1762244632882,0.00023928,104450.0,104440.0,0.39265948]
[1762244633099,0.06685151,104490.0,104450.0,0.19147749]
[1762244633318,0.04629,104490.0,104480.0,0.04662]
[1762244633575,10.23919955,104500.0,104480.0,0.08891]
[1762244633817,0.34,104490.0,104480.0,0.08891]
[1762244634041,0.34095665,104490.0,104480.0,0.13691]
[1762244634260,0.34495665,104490.0,104480.0,0.20324]
[1762244634469,0.34510223,104490.0,104480.0,0.20324]
[1762244634947,0.34110223,104490.0,104480.0,0.20324]
[1762244635164,0.34510223,104490.0,104480.0,0.20324]
[1762244635598,0.00510223,104490.0,104480.0,0.20324]
[1762244635814,0.34510223,104490.0,104480.0,0.20324]
[1762244636250,0.00510223,104490.0,104480.0,0.20324]
[1762244636476,0.00310223,104490.0,104480.0,0.20324]
[1762244636918,0.00310223,104490.0,104480.0,0.39666419]
[1762244636919,0.00110223,104490.0,104480.0,0.39666419]
[1762244637134,0.34110223,104490.0,104480.0,0.39666419]
[1762244637369,0.34110223,104490.0,104480.0,0.39766419]
[1762244637613,0.00110223,104490.0,104480.0,0.39766419]
[1762244638472,0.00110223,104490.0,104480.0,0.40766418]
[1762244638689,0.00110223,104490.0,104480.0,0.39766419]
[1762244638911,0.00110223,104490.0,104480.0,0.40766418]
[1762244639338,0.00110223,104490.0,104480.0,0.40566418]
[1762244639557,0.00110223,104490.0,104480.0,0.40866418]
[1762244639771,9.97143147,104500.0,104490.0,0.19140587]
[1762244640029,9.97143147,104500.0,104490.0,0.32675809]
[1762244640247,9.97143147,104500.0,104490.0,0.39308809]
[1762244641281,9.97143147,104500.0,104490.0,0.39608809]
[1762244641531,9.97143147,104500.0,104490.0,0.20468222]
[1762244642637,10.31143147,104500.0,104490.0,0.20468222]
[1762244642860,10.31091929,104500.0,104490.0,0.20468222]
[1762244643080,10.50230684,104500.0,104490.0,0.20468222]
[1762244643736,10.63306518,104500.0,104490.0,0.20268222]
[1762244643982,10.53848912,104500.0,104490.0,0.09227]
[1762244644205,10.54048912,104500.0,104490.0,0.18256]
[1762244644619,10.54448912,104500.0,104490.0,0.18256]
[1762244645066,10.31691929,104500.0,104490.0,0.20170058]
[1762244645304,10.31691929,104500.0,104490.0,0.2208228]
[1762244645530,9.97715838,104500.0,104490.0,0.20168222]
[1762244645966,9.97315838,104500.0,104490.0,0.20168222]
[1762244646400,9.97515838,104500.0,104490.0,0.20168222]
[1762244646653,9.97315838,104500.0,104490.0,0.20168222]
[1762244646874,9.97115838,104500.0,104490.0,0.20268222]
[1762244647081,9.97115838,104500.0,104490.0,0.20468222]
[1762244647728,9.79010971,104500.0,104490.0,0.39608809]
[1762244647961,9.79010971,104500.0,104490.0,0.20468222]
[1762244648606,9.79010971,104500.0,104490.0,0.39608809]
[1762244648823,10.13010971,104500.0,104490.0,0.20468222]
[1762244649292,10.13010971,104500.0,104490.0,0.39608809]
[1762244649293,9.79010971,104500.0,104490.0,0.39608809]
[1762244650179,9.79010971,104500.0,104490.0,0.44227036]
[1762244650390,9.7745398,104500.0,104490.0,0.44227036]
[1762244650888,9.7745398,104500.0,104490.0,0.39608809]
[1762244651104,9.7745398,104500.0,104490.0,0.39332075]
[1762244651772,9.7745398,104500.0,104490.0,0.20191488]
[1762244652244,9.7745398,104500.0,104490.0,0.20091488]
[1762244652455,9.7745398,104500.0,104490.0,0.20791488]
[1762244652619,9.7745398,104500.0,104490.0,0.21134104]
[1762244652822,10.1145398,104500.0,104490.0,0.20434104]
[1762244653028,10.1145398,104500.0,104490.0,0.20034104]
[1762244653233,10.30592735,104500.0,104490.0,0.20134104]
[1762244653654,10.1145398,104500.0,104490.0,0.20134104]
[1762244654176,10.30592735,104500.0,104490.0,0.20134104]
[1762244654630,10.40050341,104500.0,104490.0,0.18221882]
[1762244654835,10.34210963,104500.0,104490.0,0.001]
[1762244655045,10.39771963,104500.0,104490.0,0.001]
[1762244655456,0.53140587,104490.0,104480.0,0.04662]
[1762244656409,0.53142419,104480.0,104470.0,0.13597]
[1762244656613,0.53142419,104480.0,104470.0,0.13611558]
[1762244656741,0.53142419,104480.0,104470.0,0.19058558]
[1762244657378,0.63324419,104480.0,104470.0,0.00014558]
[1762244657806,0.57781419,104480.0,104470.0,0.00014558]
[1762244657974,0.53142419,104480.0,104470.0,0.00014558]
[1762244658601,0.56760647,104480.0,104470.0,0.00014558]
[1762244658814,0.56860647,104480.0,104470.0,0.00014558]
[1762244659037,0.67042647,104480.0,104470.0,0.00014558]
[1762244659243,0.61508647,104480.0,104470.0,0.00014558]
[1762244659501,0.67042647,104480.0,104470.0,0.00014558]
[1762244659715,0.67142647,104480.0,104470.0,0.00014558]
[1762244659988,0.76417945,104480.0,104470.0,0.00014558]
[1762244660191,0.76317945,104480.0,104470.0,0.00014558]
[1762244660397,0.76217945,104480.0,104470.0,0.00014558]
[1762244660600,0.76317945,104480.0,104470.0,0.00014558]
[1762244660836,0.67342647,104480.0,104470.0,0.00014558]
[1762244661699,0.68319573,104480.0,104470.0,0.00014558]
[1762244662342,0.67919573,104480.0,104470.0,0.00014558]
[1762244662540,0.68219573,104480.0,104470.0,0.00014558]
[1762244662751,0.68419573,104480.0,104470.0,0.00014558]
[1762244662958,0.77722563,104480.0,104470.0,0.00014558]
[1762244663851,0.77722563,104480.0,104470.0,0.20014558]
[1762244665124,0.74104335,104480.0,104470.0,0.20014558]
[1762244665324,0.77722563,104480.0,104470.0,0.20014558]
[1762244667473,0.67419574,104480.0,104470.0,0.20014558]
[1762244668125,0.19619346,104480.0,104470.0,0.36578558]
[1762244668772,0.53142419,104480.0,104470.0,0.36578558]
[1762244668979,0.34,104480.0,104470.0,0.36578558]
[1762244669197,0.19142419,104480.0,104470.0,0.36578558]
[1762244669403,0.53342419,104480.0,104470.0,0.36578558]
[1762244669825,0.19242419,104480.0,104470.0,0.36578558]
[1762244670040,0.19142419,104480.0,104470.0,0.36578558]
[1762244670242,0.53142419,104480.0,104470.0,0.36578558]
[1762244671105,0.34,104480.0,104470.0,0.36578558]
[1762244671334,0.53142419,104480.0,104470.0,0.36578558]
[1762244671540,0.53142419,104480.0,104470.0,0.36778558]
[1762244671958,0.53142419,104480.0,104470.0,0.36578558]
[1762244672163,0.6037072,104480.0,104470.0,0.28221558]
[1762244672376,0.6037072,104480.0,104470.0,0.28321558]
[1762244672583,0.53142419,104480.0,104470.0,0.28321558]
[1762244672797,0.53142419,104480.0,104470.0,0.37559558]
[1762244673613,0.19142419,104480.0,104470.0,0.37559558]
[1762244674239,0.19140587,104490.0,104470.0,0.37559558]
[1762244674440,0.22758815,104490.0,104480.0,0.01108]
[1762244674639,0.22758815,104490.0,104480.0,0.10346]
[1762244675289,0.22958815,104490.0,104480.0,0.10346]
[1762244675504,0.22958815,104490.0,104480.0,0.01108]
[1762244675702,0.56758815,104490.0,104480.0,0.01108]
[1762244676114,0.57058815,104490.0,104480.0,0.01108]
[1762244678200,0.19142419,104480.0,104470.0,0.22074558]
[1762244678403,0.19142419,104480.0,104470.0,0.28221558]
[1762244678611,0.19142419,104480.0,104470.0,0.37459558]
[1762244679035,0.53142419,104480.0,104470.0,0.28221558]
[1762244679236,0.53580419,104480.0,104470.0,0.22074558]
[1762244679657,0.53142419,104480.0,104470.0,0.28221558]
[1762244680065,0.53142419,104480.0,104470.0,0.37459558]
[1762244680291,0.59743036,104480.0,104470.0,0.22074558]
[1762244681145,0.68819036,104480.0,104470.0,0.20014558]
[1762244681362,0.57110647,104480.0,104470.0,0.20014558]
[1762244681581,0.57110647,104480.0,104470.0,0.21785558]
[1762244681582,0.56960647,104480.0,104470.0,0.21785558]
[1762244681785,0.57060647,104480.0,104470.0,0.27932558]
[1762244681992,0.57498647,104480.0,104470.0,0.21785558]
[1762244682436,0.66488647,104480.0,104470.0,0.20014558]
[1762244685194,0.3636043,104480.0,104470.0,0.34675558]
[1762244685606,0.51884621,104480.0,104470.0,0.25581558]
[1762244686058,0.32742202,104480.0,104470.0,0.25581558]
[1762244686468,0.3626043,104480.0,104470.0,0.25581558]
[1762244686672,0.55496849,104480.0,104470.0,0.20014558]
[1762244686878,0.64626849,104480.0,104470.0,0.20014558]
[1762244687951,0.3615443,104480.0,104470.0,0.20014558]
[1762244688163,0.3615443,104480.0,104470.0,0.25581558]
[1762244688164,0.3606043,104480.0,104470.0,0.25581558]
[1762244688574,0.32442202,104480.0,104470.0,0.34675558]
[1762244689424,0.51584621,104480.0,104470.0,0.25581558]
[1762244689630,0.64627849,104480.0,104470.0,0.20014558]
[1762244690696,0.64827849,104480.0,104470.0,0.20014558]
[1762244692235,0.64927849,104480.0,104470.0,0.20014558]
[1762244693507,0.3636043,104480.0,104470.0,0.25647558]
[1762244693961,0.3636043,104480.0,104470.0,0.34742558]
[1762244694403,0.3636043,104480.0,104470.0,0.25647558]
[1762244694404,0.55502849,104480.0,104470.0,0.25647558]
[1762244694942,0.6153742,104480.0,104470.0,0.25647558]
[1762244695350,0.53945098,104480.0,104470.0,0.25647558]
[1762244696390,0.31184451,104480.0,104470.0,0.25647558]
[1762244696593,0.31184451,104480.0,104470.0,0.34777558]
[1762244697253,0.001,104480.0,104470.0,0.34777558]
[1762244697474,0.001,104480.0,104470.0,0.3668978]
[1762244697740,2.269e-05,104480.0,104470.0,0.55834031]
[1762244698196,2.269e-05,104480.0,104470.0,0.56789069]
[1762244698414,9.7745398,104500.0,104470.0,0.57746281]
[1762244698629,9.7745398,104500.0,104490.0,0.05538]
[1762244699063,9.7754798,104500.0,104490.0,0.05538]
[1762244699277,9.87834917,104500.0,104480.0,0.04943]
[1762244699548,10.06973688,104500.0,104480.0,0.04943]
[1762244699738,9.97643688,104500.0,104480.0,0.14073]
[1762244699985,10.35167916,104500.0,104490.0,0.05887]
[1762244700208,10.35167916,104500.0,104490.0,0.15017]
[1762244700441,10.15072208,104500.0,104490.0,0.15017]
[1762244700652,9.7745398,104500.0,104490.0,0.38938905]
[1762244700866,9.7745398,104500.0,104490.0,0.1788426]
[1762244701086,9.7745398,104500.0,104490.0,0.38938905]
[1762244701381,9.7745398,104500.0,104490.0,0.37024847]
[1762244702740,9.7745398,104500.0,104490.0,0.37524847]
[1762244703416,9.7745398,104500.0,104490.0,0.37324847]
[1762244703643,9.7745398,104500.0,104490.0,0.37924847]
[1762244704145,9.7745398,104500.0,104490.0,0.1878426]
[1762244705240,9.7745398,104500.0,104490.0,0.1848426]
[1762244705462,9.7745398,104500.0,104490.0,0.37624847]
[1762244705692,9.75896694,104500.0,104490.0,0.37624847]
[1762244705900,9.75896694,104500.0,104490.0,0.1808426]
[1762244706344,9.75896694,104500.0,104490.0,0.1848426]
[1762244706558,9.75896694,104500.0,104490.0,0.37624847]
[1762244707443,9.73716973,104500.0,104490.0,0.77243073]
[1762244707691,9.73716973,104500.0,104490.0,0.76243074]
[1762244708142,9.73716973,104500.0,104490.0,0.77243073]
[1762244708374,9.73716973,104500.0,104490.0,0.77043073]
[1762244708594,9.73716973,104500.0,104490.0,0.76943073]
[1762244708810,9.25770576,104500.0,104490.0,0.76943073]
[1762244709035,8.87894193,104500.0,104490.0,0.76643073]
[1762244709267,8.87894193,104500.0,104490.0,1.04346439]
[1762244709495,8.87894193,104500.0,104490.0,0.84846439]
[1762244709733,8.67894193,104500.0,104490.0,1.03946439]
[1762244709944,8.67894193,104500.0,104490.0,0.84546439]
[1762244710167,8.67894193,104500.0,104490.0,0.85546439]
[1762244710441,8.23098384,104500.0,104490.0,1.05546439]
[1762244710668,7.99326699,104500.0,104490.0,1.05546439]
[1762244711335,7.99326699,104500.0,104490.0,1.02893928]
[1762244711555,7.99326699,104500.0,104490.0,1.13973927]
[1762244711780,7.99326699,104500.0,104490.0,1.12973928]
[1762244711996,7.99326699,104500.0,104490.0,1.13973927]
[1762244712178,7.99326699,104500.0,104490.0,1.12973928]
[1762244712423,7.93581145,104500.0,104490.0,1.13973927]
[1762244712634,7.4568719,104500.0,104490.0,1.13973927]
[1762244712850,7.21791223,104500.0,104490.0,1.13973927]